fUST/lending_fUST_20250514
["ID","MTS","AMOUNT","RATE_DAILY","PERIOD"]
[360964458,1747167040887,-1179.73,0.00013972,2]
[360964459,1747167040897,-1338.76,0.00013972,2]
[360964460,1747167040907,-476.48,0.00013972,2]
[360964461,1747167040917,-400.0,0.00013972,2]
[360964462,1747167040927,-400.0,0.00013972,2]
[360964463,1747167040937,-971.74,0.00013972,2]
[360964464,1747167040946,-400.0,0.00013972,2]
[360964465,1747167040956,-2312.11,0.00013972,2]
[360964466,1747167040965,-400.0,0.00013972,2]
[360964467,1747167040975,-400.0,0.00013972,2]
[360964468,1747167040985,-755.25,0.00013972,2]
[360964469,1747167040994,-400.0,0.00013972,2]
[360964470,1747167041004,-400.0,0.00013972,2]
[360964471,1747167041013,-753.51,0.00013972,2]
[360964472,1747167041023,-400.0,0.00013972,2]
[360964473,1747167041033,-5558.39,0.00013972,2]
[360964474,1747167041042,-2506.43,0.00013972,2]
[360964475,1747167041052,-785.57,0.00013972,2]
[360964476,1747167041062,-400.0,0.00013972,2]
[360964477,1747167041072,-7798.66,0.00013972,2]
[360964478,1747167041081,-1588.77,0.00013972,2]
[360964479,1747167041092,-400.0,0.00013972,2]
[360964480,1747167041101,-999.36,0.00013972,2]
[360964481,1747167041110,-904.72,0.00013972,2]
[360964482,1747167041120,-400.0,0.00013972,2]
[360964483,1747167041129,-500.0,0.00013972,2]
[360964484,1747167041146,-922.17,0.00013972,2]
[360964485,1747167041168,-1685.99,0.00013972,2]
[360964486,1747167041177,-536.25,0.00013972,2]
[360964487,1747167041187,-1142.33,0.00013972,2]
[360964488,1747167041197,-400.0,0.00013972,2]
[360964489,1747167041206,-400.0,0.00013972,2]
[360964490,1747167041216,-2291.72,0.00013972,2]
[360964491,1747167041225,-400.0,0.00013972,2]
[360964492,1747167041235,-532.21,0.00013972,2]
[360964493,1747167041246,-944.0,0.00013972,2]
[360964494,1747167041255,-3954.06,0.00013972,2]
[360964495,1747167041265,-400.0,0.00013972,2]
[360964496,1747167041275,-400.0,0.00013972,2]
[360964497,1747167041284,-400.0,0.00013972,2]
[360964498,1747167041293,-1920.27,0.00013972,2]
[360964499,1747167041303,-405.71,0.00013972,2]
[360964500,1747167041313,-400.0,0.00013972,2]
[360964501,1747167041324,-400.0,0.00013972,2]
[360964502,1747167041340,-813.97,0.00013972,2]
[360964503,1747167041350,-411.6,0.00013972,2]
[360964504,1747167041360,-400.0,0.00013972,2]
[360964505,1747167041370,-841.74,0.00013972,2]
[360964506,1747167041381,-368.524129,0.00013972,2]
[360964507,1747167041391,-400.0,0.00013972,2]
[360964508,1747167041402,-2729.39,0.00013972,2]
[360964509,1747167041413,-400.0,0.00013972,2]
[360964510,1747167041423,-368.524129,0.00013972,2]
[360964511,1747167041434,-1151.82,0.00013972,2]
[360964512,1747167041444,-940.95,0.00013972,2]
[360964513,1747167041453,-400.0,0.00013972,2]
[360964514,1747167041463,-400.0,0.00013972,2]
[360964515,1747167041473,-400.0,0.00013972,2]
[360964516,1747167041483,-400.0,0.00013972,2]
[360964517,1747167041493,-975.25,0.00013972,2]
[360964518,1747167041503,-400.0,0.00013972,2]
[360964519,1747167041513,-4464.88,0.00013972,2]
[360964520,1747167041523,-2234.09,0.00013972,2]
[360964521,1747167041534,-1008.05,0.00013972,2]
[360964522,1747167041544,-11176.64,0.00013972,2]
[360964523,1747167041553,-3892.27,0.00013972,2]
[360964524,1747167041566,-411.65,0.00013972,2]
[360964525,1747167041576,-668.35,0.00013972,2]
[360964526,1747167041585,-400.0,0.00013972,2]
[360964527,1747167041595,-1305.97,0.00013972,2]
[360964528,1747167041605,-400.0,0.00013972,2]
[360964529,1747167041615,-3156.03,0.00013972,2]
[360964530,1747167041625,-400.0,0.00013972,2]
[360964531,1747167041634,-710.33,0.00013972,2]
[360964532,1747167041644,-615.01,0.00013972,2]
[360964533,1747167041654,-462.82,0.00013972,2]
[360964534,1747167041663,-2885.66,0.00013972,2]
[360964535,1747167041674,-1343.84,0.00013972,2]
[360964536,1747167041683,-400.0,0.00013972,2]
[360964537,1747167041696,-400.0,0.00013972,2]
[360964538,1747167041712,-8218.67,0.00013972,2]
[360964539,1747167041726,-500.0,0.00013973,2]
[360964540,1747167041741,-500.0,0.00013973,2]
[360964541,1747167041755,-500.0,0.00013973,2]
[360964542,1747167041767,-500.0,0.00013973,2]
[360964543,1747167041782,-500.0,0.00013973,2]
[360964544,1747167041796,-500.0,0.00013973,2]
[360964545,1747167041810,-500.0,0.00013973,2]
[360964546,1747167041823,-500.0,0.00013973,2]
[360964547,1747167041837,-500.0,0.00013973,2]
[360964548,1747167041852,-500.0,0.00013973,2]
[360964549,1747167041866,-546.0,0.00013999,2]
[360964550,1747167041880,-2237.0,0.00013999,2]
[360964551,1747167041895,-706.0,0.00013999,2]
[360964552,1747167041910,-404.0,0.00013999,2]
[360964553,1747167041923,-404.0,0.00013999,2]
[360964554,1747167041936,-50000.0,0.00014,2]
[360964555,1747167041949,-494.38560371,0.00014237,2]
[360964556,1747167041963,-26051.23657414,0.00014245,3]
[360964557,1747167041975,-212.19047112,0.00014245,3]
[360964558,1747167041989,-128786.22903589,0.00014246,2]
[360964559,1747167042003,-151.0,0.00014246,2]
[360964560,1747167042015,-151.0,0.00014246,2]
[360964561,1747167042029,-151.0,0.00014246,2]
[360964562,1747167042040,-151.0,0.00014246,2]
[360964563,1747167042051,-151.0,0.00014246,2]
[360964564,1747167042064,-151.0,0.00014246,2]
[360964565,1747167042075,-151.0,0.00014246,2]
[360964566,1747167042088,-151.0,0.00014246,2]
[360964567,1747167042103,-151.0,0.00014246,2]
[360964568,1747167042116,-151.0,0.00014246,2]
[360964569,1747167042130,-425.82,0.00014246,2]
[360964570,1747167042143,-416.17,0.00014246,2]
[360964571,1747167042158,-151.0,0.00014246,2]
[360964572,1747167042173,-400.0,0.00014246,2]
[360964573,1747167042187,-400.0,0.00014246,2]
[360964574,1747167042202,-400.0,0.00014246,2]
[360964575,1747167042214,-532.38,0.00014246,2]
[360964576,1747167042225,-400.0,0.00014246,2]
[360964577,1747167042236,-400.0,0.00014246,2]
[360964578,1747167042247,-925.82,0.00014246,2]
[360964579,1747167042260,-400.0,0.00014246,2]
[360964580,1747167042274,-151.0,0.00014246,2]
[360964581,1747167042289,-503.42898893,0.00014246,2]
[360964582,1747167042303,-400.0,0.00014246,2]
[360964583,1747167042315,-400.0,0.00014246,2]
[360964584,1747167042327,-400.0,0.00014246,2]
[360964585,1747167042341,-400.0,0.00014246,2]
[360964586,1747167042352,-400.0,0.00014246,2]
[360964587,1747167042367,-1395.3,0.00014246,2]
[360964588,1747167042379,-400.0,0.00014246,2]
[360964589,1747167042391,-400.0,0.00014246,2]
[360964590,1747167042404,-400.0,0.00014246,2]
[360964591,1747167042416,-400.0,0.00014246,2]
[360964592,1747167042429,-400.0,0.00014246,2]
[360964593,1747167042441,-400.0,0.00014246,2]
[360964594,1747167042452,-400.0,0.00014246,2]
[360964595,1747167042465,-168.878837,0.00014246,2]
[360964596,1747167042477,-168.878837,0.00014246,2]
[360964598,1747167042489,-400.0,0.00014246,2]
[360964600,1747167042500,-400.0,0.00014246,2]
[360964601,1747167042512,-151.0,0.00014246,2]
[360964602,1747167042524,-519.08,0.00014246,2]
[360964603,1747167042535,-400.0,0.00014246,2]
[360964604,1747167042548,-400.0,0.00014246,2]
[360964605,1747167042560,-554.68,0.00014246,2]
[360964606,1747167042572,-400.0,0.00014246,2]
[360964607,1747167042583,-400.0,0.00014246,2]
[360964608,1747167042596,-677.9,0.00014246,2]
[360964609,1747167042607,-400.0,0.00014246,2]
[360964610,1747167042619,-537.08,0.00014246,2]
[360964611,1747167042630,-400.0,0.00014246,2]
[360964612,1747167042642,-151.0,0.00014246,2]
[360964613,1747167042654,-1568.72,0.00014246,2]
[360964614,1747167042665,-151.0,0.00014246,2]
[360964615,1747167042677,-151.0,0.00014246,2]
[360964616,1747167042688,-1173.98,0.00014246,2]
[360964617,1747167042700,-412.71,0.00014246,2]
[360964618,1747167042712,-400.0,0.00014246,2]
[360964619,1747167042723,-824.92,0.00014246,2]
[360964620,1747167042735,-478.83,0.00014246,2]
[360964621,1747167042747,-400.0,0.00014246,2]
[360964622,1747167042759,-400.0,0.00014246,2]
[360964623,1747167042771,-911.31,0.00014246,2]
[360964624,1747167042782,-285.04558982,0.00014246,2]
[360964625,1747167042794,-151.0,0.00014246,2]
[360964626,1747167042805,-151.0,0.00014246,2]
[360964627,1747167042817,-151.0,0.00014246,2]
[360964628,1747167042828,-400.0,0.00014246,2]
[360964629,1747167042839,-400.0,0.00014246,2]
[360964630,1747167042852,-400.0,0.00014246,2]
[360964631,1747167042863,-490.92,0.00014246,2]
[360964632,1747167042879,-1156.89,0.00014246,2]
[360964633,1747167042891,-400.0,0.00014246,2]
[360964634,1747167042903,-772.6,0.00014246,2]
[360964635,1747167042915,-400.0,0.00014246,2]
[360964636,1747167042926,-1829.54,0.00014246,2]
[360964637,1747167042938,-452.45,0.00014246,2]
[360964638,1747167042950,-400.0,0.00014246,2]
[360964639,1747167042963,-400.0,0.00014246,2]
[360964640,1747167042974,-400.0,0.00014246,2]
[360964641,1747167042986,-151.0,0.00014246,2]
[360964642,1747167042998,-151.0,0.00014246,2]
[360964643,1747167043010,-151.0,0.00014246,2]
[360964644,1747167043022,-400.0,0.00014246,2]
[360964645,1747167043034,-162.08239734,0.00014246,2]
[360964646,1747167043045,-400.0,0.00014246,2]
[360964647,1747167043056,-667.14,0.00014246,2]
[360964648,1747167043067,-470.08217855,0.00014246,2]
[360964649,1747167043078,-414.415313,0.00014246,2]
[360964650,1747167043090,-414.415313,0.00014246,2]
[360964651,1747167043101,-460.84,0.00014246,2]
[360964652,1747167043113,-414.415313,0.00014246,2]
[360964653,1747167043124,-441.12,0.00014246,2]
[360964654,1747167043136,-414.415313,0.00014246,2]
[360964655,1747167043148,-414.415313,0.00014246,2]
[360964656,1747167043160,-414.415313,0.00014246,2]
[360964657,1747167043171,-400.0,0.00014246,2]
[360964658,1747167043183,-400.0,0.00014246,2]
[360964659,1747167043195,-787.68,0.00014246,2]
[360964660,1747167043207,-400.0,0.00014246,2]
[360964661,1747167043219,-724.73,0.00014246,2]
[360964662,1747167043231,-400.0,0.00014246,2]
[360964663,1747167043243,-511.73,0.00014246,2]
[360964664,1747167043254,-402.88,0.00014246,2]
[360964665,1747167043265,-1261.73,0.00014246,2]
[360964666,1747167043278,-400.0,0.00014246,2]
[360964667,1747167043289,-400.0,0.00014246,2]
[360964668,1747167043301,-400.0,0.00014246,2]
[360964669,1747167043313,-400.0,0.00014246,2]
[360964670,1747167043328,-623.28,0.00014246,2]
[360964671,1747167043339,-1223.85,0.00014246,2]
[360964672,1747167043351,-400.0,0.00014246,2]
[360964673,1747167043363,-813.54,0.00014246,2]
[360964674,1747167043374,-410.86,0.00014246,2]
[360964675,1747167043386,-610.29,0.00014246,2]
[360964676,1747167043397,-199.50317111,0.00014246,2]
[360964677,1747167043410,-509.2,0.00014246,2]
[360964678,1747167043422,-400.0,0.00014246,2]
[360964679,1747167043433,-539.25,0.00014246,2]
[360964680,1747167043446,-400.0,0.00014246,2]
[360964681,1747167043458,-900.7,0.00014246,2]
[360964682,1747167043470,-531.75,0.00014246,2]
[360964683,1747167043482,-400.0,0.00014246,2]
[360964684,1747167043494,-691.03,0.00014246,2]
[360964685,1747167043506,-1837.6,0.00014246,2]
[360964686,1747167043518,-400.0,0.00014246,2]
[360964687,1747167043530,-403.55,0.00014246,2]
[360964688,1747167043542,-410.71,0.00014246,2]
[360964689,1747167043554,-400.0,0.00014246,2]
[360964690,1747167043568,-1319.78,0.00014246,2]
[360964691,1747167043580,-400.0,0.00014246,2]
[360964692,1747167043591,-568.75,0.00014246,2]
[360964693,1747167043603,-1242.85,0.00014246,2]
[360964695,1747167043615,-1035.6,0.00014246,2]
[360964697,1747167043626,-790.4,0.00014246,2]
[360964698,1747167043638,-614.67,0.00014246,2]
[360964699,1747167043650,-400.0,0.00014246,2]
[360964700,1747167043662,-576.54,0.00014246,2]
[360964701,1747167043674,-400.0,0.00014246,2]
[360964702,1747167043685,-400.0,0.00014246,2]
[360964703,1747167043697,-400.0,0.00014246,2]
[360964704,1747167043709,-403.98,0.00014246,2]
[360964705,1747167043720,-399.04622689,0.00014246,2]
[360964706,1747167043732,-1765.54,0.00014246,2]
[360964707,1747167043743,-400.0,0.00014246,2]
[360964708,1747167043755,-400.0,0.00014246,2]
[360964709,1747167043767,-1151.3,0.00014246,2]
[360964710,1747167043779,-400.0,0.00014246,2]
[360964711,1747167043790,-427.38,0.00014246,2]
[360964712,1747167043802,-400.0,0.00014246,2]
[360964713,1747167043814,-422.65,0.00014246,2]
[360964714,1747167043825,-400.0,0.00014246,2]
[360964715,1747167043837,-400.0,0.00014246,2]
[360964716,1747167043849,-463.81,0.00014246,2]
[360964717,1747167043860,-862.18,0.00014246,2]
[360964718,1747167043872,-400.0,0.00014246,2]
[360964719,1747167043884,-519.43,0.00014246,2]
[360964720,1747167043895,-400.0,0.00014246,2]
[360964721,1747167043907,-400.0,0.00014246,2]
[360964722,1747167043919,-400.0,0.00014246,2]
[360964723,1747167043930,-400.0,0.00014246,2]
[360964724,1747167043941,-869.16,0.00014246,2]
[360964725,1747167043953,-400.0,0.00014246,2]
[360964726,1747167043964,-400.0,0.00014246,2]
[360964727,1747167043975,-400.0,0.00014246,2]
[360964728,1747167043987,-400.0,0.00014246,2]
[360964729,1747167043998,-649.91,0.00014246,2]
[360964730,1747167044009,-530.89,0.00014246,2]
[360964731,1747167044020,-400.0,0.00014246,2]
[360964732,1747167044031,-404.88,0.00014246,2]
[360964733,1747167044042,-400.0,0.00014246,2]
[360964734,1747167044053,-400.0,0.00014246,2]
[360964735,1747167044064,-400.0,0.00014246,2]
[360964736,1747167044076,-414.63,0.00014246,2]
[360964737,1747167044087,-400.0,0.00014246,2]
[360964738,1747167044098,-477.7,0.00014246,2]
[360964739,1747167044110,-400.0,0.00014246,2]
[360964740,1747167044121,-1200.84,0.00014246,2]
[360964741,1747167044132,-400.0,0.00014246,2]
[360964742,1747167044143,-400.0,0.00014246,2]
[360964743,1747167044154,-460.54,0.00014246,2]
[360964744,1747167044165,-516.69,0.00014246,2]
[360964745,1747167044176,-901.08,0.00014246,2]
[360964746,1747167044187,-454.51,0.00014246,2]
[360964747,1747167044199,-695.34,0.00014246,2]
[360964748,1747167044210,-400.0,0.00014246,2]
[360964749,1747167044221,-400.0,0.00014246,2]
[360964750,1747167044232,-400.09,0.00014246,2]
[360964751,1747167044244,-400.0,0.00014246,2]
[360964752,1747167044256,-400.0,0.00014246,2]
[360964753,1747167044268,-408.76,0.00014246,2]
[360964754,1747167044279,-815.35,0.00014246,2]
[360964755,1747167044290,-1509.55,0.00014246,2]
[360964756,1747167044301,-400.0,0.00014246,2]
[360964758,1747167044313,-400.0,0.00014246,2]
[360964759,1747167044324,-1163.81,0.00014246,2]
[360964760,1747167044339,-375.02899805,0.00014246,2]
[360964762,1747167044351,-430.27,0.00014246,2]
[360964764,1747167044363,-400.0,0.00014246,2]
[360964765,1747167044376,-679.9,0.00014246,2]
[360964766,1747167044387,-400.0,0.00014246,2]
[360964767,1747167044400,-428.26,0.00014246,2]
[360964768,1747167044413,-874.46,0.00014246,2]
[360964769,1747167044425,-490.0,0.00014246,2]
[360964770,1747167044437,-400.0,0.00014246,2]
[360964771,1747167044449,-400.0,0.00014246,2]
[360964772,1747167044461,-400.0,0.00014246,2]
[360964773,1747167044473,-400.0,0.00014246,2]
[360964774,1747167044485,-400.0,0.00014246,2]
[360964775,1747167044497,-500.0,0.00014246,2]
[360964776,1747167044510,-849.99,0.00014246,2]
[360964777,1747167044523,-801.59,0.00014246,2]
[360964778,1747167044535,-520.13,0.00014246,2]
[360964779,1747167044547,-400.0,0.00014246,2]
[360964780,1747167044559,-2645.4,0.00014246,2]
[360964781,1747167044570,-400.0,0.00014246,2]
[360964782,1747167044582,-400.0,0.00014246,2]
[360964791,1747167044968,-400.0,0.00014246,2]
[360964792,1747167044994,-1819.63,0.00014246,2]
[360964793,1747167045032,-1325.44,0.00014246,2]
[360964794,1747167045051,-773.6,0.00014246,2]
[360964795,1747167045061,-1724.59,0.00014246,2]
[360964796,1747167045071,-419.98,0.00014246,2]
[360964797,1747167045081,-857.46,0.00014246,2]
[360964798,1747167045092,-400.0,0.00014246,2]
[360964799,1747167045101,-400.0,0.00014246,2]
[360964800,1747167045111,-1982.36,0.00014246,2]
[360964801,1747167045120,-3987.51,0.00014246,2]
[360964802,1747167045130,-3349.46,0.00014246,2]
[360964803,1747167045139,-1971.51,0.00014246,2]
[360964804,1747167045148,-400.0,0.00014246,2]
[360964805,1747167045158,-400.0,0.00014246,2]
[360964806,1747167045167,-400.0,0.00014246,2]
[360964807,1747167045177,-1118.77,0.00014246,2]
[360964808,1747167045186,-1005.88,0.00014246,2]
[360964809,1747167045195,-738.21,0.00014246,2]
[360964810,1747167045205,-422.73,0.00014246,2]
[360964811,1747167045215,-400.0,0.00014246,2]
[360964812,1747167045224,-1218.13,0.00014246,2]
[360964813,1747167045233,-400.0,0.00014246,2]
[360964814,1747167045243,-400.0,0.00014246,2]
[360964815,1747167045253,-5092.51,0.00014246,2]
[360964816,1747167045262,-400.0,0.00014246,2]
[360964817,1747167045273,-1595.08,0.00014246,2]
[360964818,1747167045282,-458.23,0.00014246,2]
[360964819,1747167045292,-3749.57,0.00014246,2]
[360964820,1747167045301,-400.0,0.00014246,2]
[360964821,1747167045311,-779.82,0.00014246,2]
[360964822,1747167045320,-15029.04,0.00014246,2]
[360964823,1747167045331,-400.0,0.00014246,2]
[360964824,1747167045343,-400.0,0.00014246,2]
[360964825,1747167045353,-5381.73,0.00014246,2]
[360964826,1747167045363,-400.0,0.00014246,2]
[360964827,1747167045374,-881.02,0.00014246,2]
[360964828,1747167045384,-400.0,0.00014246,2]
[360964829,1747167045394,-2559.66,0.00014246,2]
[360964830,1747167045403,-1555.67,0.00014246,2]
[360964831,1747167045414,-202.32131,0.00014246,2]
[360964832,1747167045424,-202.32131,0.00014246,2]
[360964833,1747167045434,-578.85,0.00014246,2]
[360964834,1747167045444,-202.32131,0.00014246,2]
[360964835,1747167045454,-400.0,0.00014246,2]
[360964836,1747167045464,-492.72,0.00014246,2]
[360964837,1747167045473,-202.32131,0.00014246,2]
[360964838,1747167045484,-202.32131,0.00014246,2]
[360964839,1747167045495,-2548.47,0.00014246,2]
[360964840,1747167045506,-202.32131,0.00014246,2]
[360964841,1747167045518,-400.0,0.00014246,2]
[360964842,1747167045528,-490.54,0.00014246,2]
[360964843,1747167045540,-151.0,0.00014246,2]
[360964844,1747167045551,-151.0,0.00014246,2]
[360964845,1747167045562,-400.0,0.00014246,2]
[360964847,1747167045574,-400.0,0.00014246,2]
[360964849,1747167045584,-151.0,0.00014246,2]
[360964851,1747167045596,-1775.02,0.00014246,2]
[360964853,1747167045606,-400.0,0.00014246,2]
[360964854,1747167045616,-404.67,0.00014246,2]
[360964855,1747167045626,-3518.41,0.00014246,2]
[360964856,1747167045636,-1226.83,0.00014246,2]
[360964857,1747167045646,-1695.56,0.00014246,2]
[360964858,1747167045655,-400.0,0.00014246,2]
[360964859,1747167045665,-2493.08,0.00014246,2]
[360964860,1747167045676,-400.0,0.00014246,2]
[360964861,1747167045686,-1744.8,0.00014246,2]
[360964862,1747167045696,-400.0,0.00014246,2]
[360964863,1747167045706,-536.88235868,0.00014246,2]
[360964864,1747167045715,-1755.63,0.00014246,2]
[360964866,1747167045725,-519.96,0.00014246,2]
[360964867,1747167045735,-2613.08,0.00014246,2]
[360964868,1747167045745,-2989.05,0.00014246,2]
[360964869,1747167045755,-598.43,0.00014246,2]
[360964870,1747167045765,-400.0,0.00014246,2]
[360964871,1747167045776,-400.0,0.00014246,2]
[360964872,1747167045786,-400.0,0.00014246,2]
[360964873,1747167045795,-400.0,0.00014246,2]
[360964874,1747167045805,-151.0,0.00014246,2]
[360964875,1747167045814,-151.0,0.00014246,2]
[360964876,1747167045823,-1260.79,0.00014246,2]
[360964878,1747167045833,-151.0,0.00014246,2]
[360964879,1747167045845,-417.63,0.00014246,2]
[360964881,1747167045855,-3249.88,0.00014246,2]
[360964883,1747167045865,-9303.72,0.00014246,2]
[360964884,1747167045875,-422.87,0.00014246,2]
[360964885,1747167045886,-400.0,0.00014246,2]
[360964886,1747167045896,-3579.06,0.00014246,2]
[360964887,1747167045906,-400.0,0.00014246,2]
[360964888,1747167045915,-2820.85,0.00014246,2]
[360964889,1747167045925,-400.0,0.00014246,2]
[360964890,1747167045935,-578.71,0.00014246,2]
[360964891,1747167045945,-708.08,0.00014246,2]
[360964892,1747167045954,-1081.48,0.00014246,2]
[360964893,1747167045964,-400.0,0.00014246,2]
[360964894,1747167045973,-400.0,0.00014246,2]
[360964895,1747167045983,-1966.8,0.00014246,2]
[360964897,1747167045993,-434.27,0.00014246,2]
[360964899,1747167046002,-400.0,0.00014246,2]
[360964901,1747167046011,-530.39,0.00014246,2]
[360964902,1747167046021,-805.93,0.00014246,2]
[360964903,1747167046030,-400.0,0.00014246,2]
[360964904,1747167046040,-797.76,0.00014246,2]
[360964905,1747167046050,-689.78,0.00014246,2]
[360964907,1747167046059,-470.41,0.00014246,2]
[360964909,1747167046068,-2156.6,0.00014246,2]
[360964911,1747167046078,-400.0,0.00014246,2]
[360964913,1747167046087,-961.67,0.00014246,2]
[360964915,1747167046097,-435.13,0.00014246,2]
[360964917,1747167046107,-414.11,0.00014246,2]
[360964919,1747167046116,-486.54,0.00014246,2]
[360964921,1747167046126,-899.8,0.00014246,2]
[360964923,1747167046136,-566.02,0.00014246,2]
[360964925,1747167046145,-423.6,0.00014246,2]
[360964927,1747167046155,-451.11,0.00014246,2]
[360964929,1747167046164,-400.0,0.00014246,2]
[360964931,1747167046173,-400.0,0.00014246,2]
[360964933,1747167046183,-4372.58,0.00014246,2]
[360964935,1747167046192,-1906.67,0.00014246,2]
[360964937,1747167046201,-1891.4,0.00014246,2]
[360964939,1747167046211,-400.0,0.00014246,2]
[360964941,1747167046221,-486.04,0.00014246,2]
[360964944,1747167046231,-445.28,0.00014246,2]
[360964946,1747167046241,-773.93,0.00014246,2]
[360964948,1747167046251,-478.8,0.00014246,2]
[360964950,1747167046261,-400.0,0.00014246,2]
[360964952,1747167046271,-2464.89,0.00014246,2]
[360964954,1747167046280,-3800.89,0.00014246,2]
[360964956,1747167046289,-400.0,0.00014246,2]
[360964958,1747167046299,-716.99,0.00014246,2]
[360964960,1747167046309,-400.0,0.00014246,2]
[360964962,1747167046318,-1179.73,0.00014246,2]
[360964964,1747167046330,-1338.76,0.00014246,2]
[360964966,1747167046339,-400.0,0.00014246,2]
[360964968,1747167046350,-400.0,0.00014246,2]
[360964970,1747167046360,-971.74,0.00014246,2]
[360964972,1747167046370,-400.0,0.00014246,2]
[360964974,1747167046379,-2312.11,0.00014246,2]
[360964976,1747167046389,-400.0,0.00014246,2]
[360964978,1747167046399,-755.25,0.00014246,2]
[360964980,1747167046408,-400.0,0.00014246,2]
[360964982,1747167046419,-400.0,0.00014246,2]
[360964984,1747167046429,-753.51,0.00014246,2]
[360964986,1747167046439,-400.0,0.00014246,2]
[360964988,1747167046449,-5558.39,0.00014246,2]
[360964990,1747167046458,-2506.43,0.00014246,2]
[360964992,1747167046468,-785.57,0.00014246,2]
[360964994,1747167046477,-400.0,0.00014246,2]
[360964996,1747167046487,-7798.66,0.00014246,2]
[360964998,1747167046496,-1588.77,0.00014246,2]
[360965000,1747167046506,-400.0,0.00014246,2]
[360965002,1747167046516,-999.36,0.00014246,2]
[360965004,1747167046525,-904.72,0.00014246,2]
[360965006,1747167046535,-400.0,0.00014246,2]
[360965008,1747167046545,-500.0,0.00014246,2]
[360965011,1747167046555,-922.17,0.00014246,2]
[360965013,1747167046565,-1685.99,0.00014246,2]
[360965015,1747167046574,-536.25,0.00014246,2]
[360965017,1747167046583,-1142.33,0.00014246,2]
[360965019,1747167046593,-400.0,0.00014246,2]
[360965021,1747167046602,-400.0,0.00014246,2]
[360965023,1747167046613,-2291.72,0.00014246,2]
[360965025,1747167046623,-400.0,0.00014246,2]
[360965027,1747167046632,-532.21,0.00014246,2]
[360965029,1747167046641,-944.0,0.00014246,2]
[360965031,1747167046651,-244.32991151,0.00014246,2]
[360965186,1747167048371,-503.02,0.00013698,2]
[360965188,1747167048381,-400.0,0.00013698,2]
[360965190,1747167048392,-503.02,0.00013972,2]
[360965192,1747167048402,-1257.26,0.00014246,2]
[360965195,1747167048417,-701.16,0.00014246,2]
[360965197,1747167048429,-340.24,0.00014246,2]
[360965244,1747167048872,-1831.16299047,0.00013561,2]
[360965246,1747167048884,-1866.2977369,0.00013561,2]
[360965248,1747167048896,-1302.53927263,0.00013561,2]
[360965250,1747167048906,-1114.43690683,0.00013698,2]
[360965263,1747167049018,-2199.99646509,0.00013698,2]
[360965265,1747167049031,-994.60662808,0.00013698,2]
[360965267,1747167049042,-2664.07874368,0.00013972,2]
[360965270,1747167049054,-1644.96125632,0.00013972,2]
[360965272,1747167049065,-1411.07008849,0.00014246,2]
[360965274,1747167049074,-400.0,0.00014246,2]